bitfinex-derivatives/quotes_ETHF0:USTF0_20250917
["timestamp","ask_amount","ask_price","bid_price","bid_amount"]
[1758117182361,1.32125,4504.2,4504.1,3.2078]
[1758117183164,1.32125,4504.2,4504.1,3.4105]
[1758117183357,0.60115,4504.2,4504.1,3.8844]
[1758117183764,0.118,4505.0,4504.1,7.6095]
[1758117183965,0.118,4505.0,4504.9,3.2078]
[1758117184270,0.118,4505.5,4505.4,0.3542]
[1758117184467,0.118,4505.5,4505.4,3.562]
[1758117186170,0.4369,4505.5,4505.4,3.562]
[1758117186370,0.638,4505.5,4505.4,3.562]
[1758117186870,0.8428,4505.5,4505.4,3.562]
[1758117188269,3.2078,4506.4,4505.4,3.562]
[1758117188270,0.3057,4505.9,4505.8,0.3536]
[1758117188568,0.5171,4505.9,4505.8,0.3536]
[1758117189965,0.7219,4505.9,4505.8,0.3536]
[1758117190364,0.3057,4505.9,4505.8,0.4641]
[1758117190667,0.5171,4506.3,4506.2,0.3536]
[1758117191471,0.3057,4506.3,4506.2,0.3536]
[1758117191662,0.5171,4506.3,4506.2,0.3536]
[1758117191972,0.4162,4506.3,4505.9,3.2078]
[1758117192159,0.6344,4506.0,4505.9,3.3846]
[1758117192362,0.8392,4506.0,4505.9,3.3846]
[1758117192558,0.6344,4505.5,4505.4,3.5614]
[1758117192770,0.8392,4505.5,4505.4,3.5614]
[1758117193165,0.8392,4505.5,4505.4,3.2078]
[1758117193869,0.8392,4505.5,4505.4,3.3846]
[1758117194569,0.8392,4505.5,4505.4,3.5614]
[1758117194971,0.8392,4505.5,4505.4,3.3846]
[1758117195364,0.8392,4505.5,4505.4,3.2078]
[1758117195560,0.8392,4505.5,4504.8,3.2078]
[1758117195868,0.6344,4505.0,4504.9,0.3757]
[1758117196365,0.8392,4505.0,4504.9,0.3757]
[1758117196672,0.6344,4505.0,4504.9,0.3757]
[1758117196869,0.423,4505.0,4504.9,0.3757]
[1758117197166,0.3057,4505.4,4504.9,0.4862]
[1758117197368,0.8392,4505.0,4504.9,0.3757]
[1758117197562,0.8392,4505.0,4504.9,3.5835]
[1758117201776,0.8392,4505.0,4504.9,3.2299]
[1758117201968,0.8392,4505.0,4504.9,0.0221]
[1758117205568,0.3287,4504.0,4503.9,3.2078]
[1758117205775,0.8392,4504.0,4503.9,3.6051]
[1758117206987,0.3057,4504.0,4503.9,3.7377]
[1758117207278,0.3287,4504.5,4504.4,0.3973]
[1758117207470,0.6344,4504.5,4504.4,0.3973]
[1758117207670,0.8392,4504.5,4504.4,0.3973]
[1758117207970,0.1173,4505.0,4504.4,3.6051]
[1758117208278,0.5171,4504.9,4504.8,0.3973]
[1758117208477,0.5171,4504.9,4504.8,3.6051]
[1758117208867,0.1173,4505.0,4504.8,3.7377]
[1758117209173,0.3057,4505.3,4505.2,0.5299]
[1758117209372,0.1173,4505.5,4505.3,0.1326]
[1758117209572,0.423,4505.5,4505.4,3.7377]
[1758117210375,0.6344,4505.5,4505.4,3.6051]
[1758117211371,0.1173,4505.0,4504.9,3.4078]
[1758117211573,0.8392,4505.0,4504.9,3.2078]
[1758117212173,0.8392,4505.0,4504.9,3.4078]
[1758117212675,0.8392,4505.0,4504.9,3.2078]
[1758117213080,0.423,4505.0,4504.1,3.2078]
[1758117213378,0.423,4505.0,4504.6,3.2078]
[1758117213582,0.1173,4505.5,4504.6,3.2078]
[1758117213583,0.3057,4505.3,4504.6,3.2078]
[1758117213784,0.39941,4504.7,4504.6,3.2078]
[1758117214379,0.39938,4505.1,4504.6,3.2078]
[1758117214577,0.1173,4505.5,4504.7,0.39941]
[1758117214776,0.3057,4505.4,4505.2,3.2078]
[1758117215180,0.3057,4505.3,4505.2,3.2078]
[1758117219487,0.70506,4505.3,4505.2,3.2078]
[1758117220587,0.3159,4505.8,4505.3,0.39935]
[1758117220787,0.3159,4505.8,4505.2,3.2078]
[1758117221192,0.3159,4505.8,4505.2,3.60716]
[1758117221382,0.3159,4505.8,4505.7,3.2078]
[1758117222382,0.4332,4506.0,4505.7,3.2078]
[1758117222588,0.4332,4506.0,4505.7,3.60712]
[1758117222783,0.1173,4506.0,4505.8,0.39931]
[1758117223588,0.4332,4506.0,4505.8,0.39931]
[1758117223786,0.4332,4506.0,4505.7,3.38686734]
[1758117223985,0.3159,4505.9,4505.7,3.38686734]
[1758117224390,0.1173,4506.0,4505.7,3.38686734]
[1758117224587,0.5228,4505.9,4505.7,3.38686734]
[1758117224781,0.3159,4505.8,4505.7,3.38686734]
[1758117227187,0.1173,4506.0,4505.7,3.38686734]
[1758117227787,0.3159,4505.8,4505.7,3.38686734]
[1758117228592,0.5228,4505.8,4505.7,3.38686734]
[1758117228986,0.3159,4505.8,4505.7,3.38686734]
[1758117229592,0.4332,4506.0,4505.7,3.78618734]
[1758117229994,0.3159,4505.9,4505.7,3.38686734]
[1758117230191,3.2078,4507.8,4506.1,0.2914]
[1758117230496,0.4083,4506.9,4506.8,3.2078]
[1758117230694,0.4083,4506.9,4506.8,3.4192]
[1758117230994,0.80752,4506.9,4506.8,3.4192]
[1758117231395,0.60612,4506.9,4506.8,3.9144]
[1758117231597,0.39922,4506.9,4506.8,3.9144]
[1758117232098,0.92202,4506.9,4506.8,3.9144]
[1758117232398,1.12342,4506.9,4506.8,3.9144]
[1758117232601,1.12342,4506.9,4506.8,3.623]
[1758117233692,0.39922,4506.9,4506.8,3.9144]
[1758117233992,1.12342,4506.9,4506.8,3.9144]
[1758117234197,1.12342,4506.9,4506.8,3.623]
[1758117237301,1.12342,4506.9,4506.8,3.4192]
[1758117238996,1.12342,4506.9,4506.8,3.2078]
[1758117240601,1.12342,4506.9,4506.8,3.4085]
[1758117241493,0.1194,4506.5,4506.2,3.2078]
[1758117241691,0.717,4506.3,4506.2,3.4085]
[1758117242094,0.717,4506.3,4506.2,3.6206]
[1758117242702,0.717,4506.3,4506.2,3.4085]
[1758117242892,0.717,4506.3,4506.2,3.2078]
[1758117243094,0.717,4506.3,4506.2,3.4085]
[1758117243792,0.717,4506.3,4506.2,3.6206]
[1758117243993,0.5051,4506.3,4506.2,3.9135]
[1758117244496,3.2078,4507.2,4506.8,0.4128]
[1758117244699,3.2078,4507.7,4506.9,0.2929]
[1758117244900,0.8364,4507.0,4506.9,0.4128]
[1758117245102,0.8364,4507.0,4506.9,0.2007]
[1758117245410,0.8364,4507.0,4506.9,0.4128]
[1758117245608,0.3049,4506.9,4506.7,3.2078]
[1758117245905,0.717,4506.8,4506.7,3.6206]
[1758117246110,0.5051,4506.8,4506.7,3.9135]
[1758117246705,3.2078,4507.7,4506.7,3.9135]
[1758117246913,0.1194,4508.5,4506.1,0.17543675]
[1758117246914,0.3134,4507.9,4507.5,0.3]
[1758117247107,0.94664,4507.9,4507.8,0.2064]
[1758117247311,0.53524,4507.8,4507.2,3.5078]
[1758117247508,0.3134,4507.9,4507.2,3.5078]
[1758117247702,0.22185001,4507.9,4507.2,3.5078]
[1758117247907,0.5214,4507.3,4507.2,3.9266]
[1758117248107,0.7248,4507.3,4507.2,3.9266]
[1758117248607,0.7248,4507.3,4507.2,3.6266]
[1758117249210,0.3134,4507.5,4507.4,0.4188]
[1758117249413,0.53,4508.0,4507.9,0.4188]
[1758117249604,0.53,4508.0,4507.9,0.7188]
[1758117249802,0.53,4508.0,4507.9,0.4188]
[1758117250009,0.8434,4508.0,4507.9,0.2064]
[1758117250205,0.8434,4508.0,4507.9,0.4188]
[1758117251216,0.7248,4507.3,4507.2,3.4142]
[1758117251616,0.7248,4507.3,4507.2,3.6266]
[1758117251816,0.7248,4507.3,4507.2,3.9266]
[1758117253014,0.5214,4507.3,4507.2,3.9266]
[1758117253414,0.7248,4507.3,4507.2,3.9266]
[1758117254923,0.5214,4507.9,4507.8,0.7188]
[1758117255124,0.7248,4507.9,4507.8,0.4188]
[1758117255624,0.7248,4507.9,4507.8,0.2064]
[1758117255923,0.7248,4507.3,4507.2,3.9266]
[1758117256222,0.5214,4507.3,4507.2,3.9266]
[1758117256421,0.7248,4507.3,4507.2,3.6266]
[1758117256820,0.7248,4507.3,4507.2,3.9266]
[1758117257020,0.3134,4507.5,4507.4,0.7188]
[1758117257222,0.5214,4507.5,4507.4,0.7188]
[1758117257724,0.528,4507.5,4507.2,3.2078]
[1758117258024,0.7248,4507.3,4507.2,3.4142]
[1758117259228,0.7248,4507.3,4507.2,3.9266]
[1758117259826,0.7248,4507.3,4507.2,3.6266]
[1758117260229,0.7248,4507.3,4507.2,3.8606]
[1758117260729,0.7248,4507.3,4507.2,3.6266]
[1758117260916,0.7248,4507.3,4507.2,3.6482]
[1758117261426,0.7248,4507.3,4507.2,3.8606]
[1758117261627,0.7248,4507.3,4507.2,4.1606]
[1758117262528,0.7248,4507.3,4507.2,3.6266]
[1758117263030,0.7248,4507.3,4507.2,3.8606]
[1758117263230,0.7248,4507.3,4507.2,3.6266]
[1758117263526,0.7248,4507.3,4507.2,3.4418]
[1758117263715,0.7248,4507.3,4507.2,3.6482]
[1758117264322,0.7248,4507.3,4507.2,3.8606]
[1758117264723,0.7248,4507.3,4507.2,3.6266]
[1758117264929,0.7248,4507.3,4507.2,3.8606]
[1758117265328,0.7248,4507.3,4507.2,4.1606]
[1758117266125,0.7248,4507.3,4507.2,3.8606]
[1758117266523,0.7248,4507.3,4507.2,4.1606]
[1758117267129,0.7248,4507.3,4507.2,3.8606]
[1758117267329,0.7248,4507.3,4507.2,4.1606]
[1758117268532,0.3134,4507.3,4507.2,4.1606]
[1758117268924,0.7248,4507.3,4507.2,4.1606]
[1758117269125,0.7248,4507.3,4507.2,3.6482]
[1758117269631,0.7248,4507.3,4507.2,3.8606]
[1758117270131,0.7248,4507.3,4507.2,3.6266]
[1758117270432,0.7248,4507.3,4507.2,4.1606]
[1758117271130,0.7248,4507.3,4507.2,3.8606]
[1758117271331,0.7248,4507.3,4507.2,3.4418]
[1758117271525,0.7248,4507.3,4507.2,3.6482]
[1758117271726,0.7248,4507.3,4507.2,3.8606]
[1758117272127,0.7248,4507.3,4507.2,3.6266]
[1758117272330,0.7248,4507.3,4507.2,4.1606]
[1758117273331,4.7248,4507.3,4506.5,3.2078]
[1758117273535,0.7248,4506.6,4506.5,0.2064]
[1758117273737,0.7248,4506.6,4506.5,0.6528]
[1758117274834,0.7248,4506.6,4506.5,0.4188]
[1758117275136,0.7248,4506.6,4506.5,0.6528]
[1758117275336,0.7248,4506.6,4506.5,0.9528]
[1758117275636,0.638,4507.0,4506.9,0.7188]
[1758117276033,0.8414,4507.0,4506.9,0.7188]
[1758117276637,0.3146,4507.2,4506.9,0.6528]
[1758117276932,0.2026,4507.3,4507.2,0.2099]
[1758117277235,0.7151,4507.3,4507.2,0.2099]
[1758117277433,0.7151,4507.3,4507.2,0.4239]
[1758117278140,0.8364,4507.0,4506.9,0.2099]
[1758117278343,0.8364,4507.0,4506.9,0.4439]
[1758117278640,0.8364,4507.0,4506.9,0.2099]
[1758117279034,0.8364,4507.0,4506.9,0.4239]
[1758117279234,0.8364,4507.0,4506.9,0.7261]
[1758117279442,0.8364,4507.0,4506.7,0.234]
[1758117279641,0.8364,4507.0,4506.9,0.2099]
[1758117280136,0.3146,4506.9,4506.5,3.2078]
[1758117280336,0.7151,4506.7,4506.6,0.234]
[1758117280537,0.4005,4506.7,4506.5,3.2078]
[1758117280738,0.3146,4506.6,4506.5,3.4418]
[1758117280935,0.7151,4506.6,4506.5,3.8657]
[1758117281131,0.7151,4506.6,4506.5,3.4177]
[1758117281336,0.7151,4506.2,4506.1,0.232]
[1758117281543,0.7151,4506.2,4506.1,0.68]
[1758117281943,0.5172,4506.2,4506.1,0.9601]
[1758117282339,0.3146,4506.2,4506.1,0.9601]
[1758117282547,0.3146,4506.5,4506.4,0.4239]
[1758117282847,0.8364,4506.5,4506.4,0.6579]
[1758117284144,0.8364,4506.5,4506.4,0.4439]
[1758117284440,0.4359,4507.0,4506.5,0.4207]
[1758117284637,0.5172,4507.0,4506.9,0.7261]
[1758117285736,0.3146,4507.2,4506.9,0.4239]
[1758117285939,0.3146,4507.2,4507.0,0.3022]
[1758117286133,0.5172,4507.2,4507.1,0.7261]
[1758117286744,0.5172,4507.2,4507.1,3.9339]
[1758117287346,0.7151,4507.2,4507.1,0.7261]
[1758117287541,0.7151,4507.2,4507.1,0.4239]
[1758117287733,0.7151,4507.2,4507.1,0.7261]
[1758117287937,0.7151,4507.2,4507.1,0.4239]
[1758117288243,0.4005,4507.2,4507.1,0.4239]
[1758117288748,0.7151,4507.2,4507.1,0.4239]
[1758117289148,0.7151,4507.2,4507.1,0.7261]
[1758117289447,0.7151,4507.2,4507.1,0.4239]
[1758117289741,0.3146,4507.1,4506.8,0.234]
[1758117289939,0.7151,4506.9,4506.8,0.234]
[1758117290144,0.7151,4506.9,4506.8,0.4439]
[1758117290347,0.7151,4506.9,4506.8,0.9601]
[1758117291147,0.5172,4506.9,4506.8,0.9601]
[1758117291745,0.3146,4507.4,4506.8,0.9601]
[1758117291951,3.2078,4507.8,4506.8,0.9601]
[1758117292143,0.3146,4507.4,4506.8,0.9601]
[1758117292344,3.2078,4507.8,4506.8,0.9601]
[1758117292648,0.7151,4506.9,4506.8,0.6579]
[1758117292953,0.7151,4506.9,4506.8,0.4439]
[1758117293147,0.7151,4506.9,4506.8,0.4429]
[1758117293450,0.7151,4506.9,4506.8,0.6569]
[1758117294049,0.7151,4506.9,4506.8,0.4429]
[1758117295043,0.7151,4506.9,4506.6,3.2078]
[1758117295349,0.3146,4506.4,4506.0,3.2078]
[1758117295554,0.7151,4506.2,4506.1,0.233]
[1758117295750,0.7151,4506.2,4506.1,0.4429]
[1758117296255,0.6905,4505.6,4505.5,3.2078]
[1758117296454,0.6905,4505.6,4505.5,3.6495]
[1758117296647,0.6905,4505.6,4505.5,3.8484]
[1758117296847,0.1207,4506.0,4505.6,0.2927]
[1758117297147,0.8112,4506.0,4505.9,0.2087]
[1758117298442,0.8112,4506.0,4505.0,0.0443]
[1758117298443,0.6905,4504.9,4504.8,1.99123758]
[1758117298648,0.3924,4504.9,4504.2,1.86943483]
[1758117298943,40.8,4504.4,4503.0,0.1238]
[1758117299150,40.8,4504.4,4502.0,0.1238]
[1758117299151,3.2078,4503.1,4502.0,0.1238]
[1758117299347,0.80270515,4504.3,4502.5,0.1238]
[1758117299348,0.233,4503.0,4502.5,0.1238]
[1758117299553,3.2078,4502.8,4502.5,0.1238]
[1758117299746,0.56730949,4502.7,4502.5,0.1238]
[1758117299949,4.56730949,4502.7,4502.5,0.1238]
[1758117300148,0.56730949,4502.6,4502.0,0.1238]
[1758117300449,3.2078,4502.1,4502.0,0.4165]
[1758117301543,3.40713134,4502.1,4502.0,0.4165]
[1758117301850,3.2078,4502.6,4502.5,0.4165]
[1758117302051,3.64013536,4502.6,4502.5,0.8241]
[1758117302443,3.64013536,4502.6,4502.5,0.4165]
[1758117302649,3.64013536,4502.6,4502.5,0.6252]
[1758117302844,3.40713536,4502.6,4502.5,0.8241]
[1758117303051,3.2078,4503.2,4503.1,0.2927]
[1758117303251,3.40683601,4503.2,4503.1,0.2927]
[1758117303548,3.2078,4503.2,4503.1,0.2927]
[1758117303743,3.2078,4503.7,4503.6,0.2927]
[1758117304148,3.2078,4504.2,4504.1,0.2927]
[1758117304351,3.40665849,4504.2,4504.1,0.2927]
[1758117304655,7.40665849,4504.2,4504.1,0.2927]
[1758117305149,3.40665849,4504.2,4504.1,0.2927]
[1758117305347,3.63965849,4504.2,4504.1,0.2927]
[1758117305951,3.2078,4504.7,4504.6,0.2927]
[1758117306252,3.2078,4505.2,4505.1,0.2927]
[1758117306445,3.40650354,4505.2,4505.1,0.2927]
[1758117307851,3.40650354,4505.2,4504.5,0.1238]
[1758117307852,7.63950354,4505.2,4504.5,0.1238]
[1758117308052,3.2078,4504.6,4504.5,0.1238]
[1758117308258,3.4408,4504.6,4504.5,0.1238]
[1758117308649,7.4408,4504.6,4504.5,0.1238]
[1758117308854,8.26300767,4504.6,4504.0,0.1238]
[1758117309055,0.233,4504.6,4504.5,0.1273]
[1758117309256,4.26310035,4504.6,4504.5,0.1273]
[1758117309456,8.26310035,4504.6,4504.5,0.1273]
[1758117309651,8.26310035,4504.6,4504.0,0.1238]
[1758117309958,3.2078,4504.1,4504.0,0.4461]
[1758117310258,3.4408,4504.1,4504.0,0.1238]
[1758117310560,4.26285108,4504.1,4504.0,0.1238]
[1758117310754,8.26285108,4504.1,4503.5,0.4461]
[1758117310959,3.2078,4503.6,4503.4,0.0222]
[1758117311259,1.05503717,4503.5,4503.1,0.3223]
[1758117311452,0.86696775,4503.4,4503.1,0.3223]
[1758117311647,3.2078,4503.6,4503.5,0.1273]
[1758117311953,4.26246409,4503.6,4503.5,0.1273]
[1758117312552,8.26246409,4503.6,4503.0,0.4496]
[1758117312753,3.2078,4503.1,4503.0,0.4496]
[1758117313054,4.0742266,4503.1,4503.0,0.4496]
[1758117313360,8.26188806,4503.1,4502.4,0.3223]
[1758117313557,3.2078,4502.6,4502.4,0.3223]
[1758117313760,4.07398643,4502.6,4502.4,0.3223]
[1758117313955,49.06174068,4502.6,4502.4,0.3223]
[1758117314552,49.06174068,4502.6,4502.5,0.4496]
[1758117314553,44.64098643,4502.6,4502.5,0.4496]
[1758117314856,3.84098643,4502.6,4502.5,0.4496]
[1758117315659,40.8,4503.4,4502.5,4.1273]
[1758117315852,0.86568889,4503.3,4503.1,0.3223]
[1758117316054,0.63268889,4503.2,4503.1,0.3223]
[1758117319567,0.63268889,4503.2,4502.1,0.3223]
[1758117319568,4.82059107,4503.2,4502.1,0.3223]
[1758117319764,3.2078,4502.2,4502.1,0.3223]
[1758117320064,4.26145493,4502.2,4502.1,0.3223]
[1758117321063,45.06145493,4502.2,4502.1,0.3223]
[1758117321459,45.06145493,4502.2,4502.0,0.1273]
[1758117321765,0.82065493,4502.1,4502.0,0.1273]
[1758117322065,0.82065493,4502.1,4502.0,0.4496]
[1758117323160,0.82065493,4502.1,4502.0,0.1273]
[1758117324159,0.82065493,4502.1,4502.0,0.4496]
[1758117324855,0.82065493,4502.1,4502.0,0.1273]
[1758117325059,0.82065493,4502.1,4502.0,0.4496]
[1758117325369,2.40783534,4502.1,4502.0,0.4496]
[1758117325769,4.82065493,4502.1,4501.2,0.0222]
[1758117326063,3.2078,4501.3,4501.2,0.0222]
[1758117326371,4.26145493,4501.3,4501.2,0.0222]
[1758117327271,5.83953541,4501.3,4501.2,0.0222]
[1758117327469,5.83953541,4501.3,4501.0,0.1273]
[1758117327663,2.39873541,4501.2,4501.0,0.1273]
[1758117327968,1.05365493,4501.1,4501.0,0.4496]
[1758117328465,1.05365493,4501.1,4500.5,0.4496]
[1758117328671,3.2078,4500.6,4500.5,0.4496]
[1758117328861,4.26145493,4500.6,4500.5,0.4496]
[1758117329168,45.06145493,4500.6,4500.5,0.4496]
[1758117330669,4.26145493,4500.6,4500.5,0.4496]
[1758117332072,4.26145493,4500.6,4500.5,0.8683]
[1758117332370,4.26145493,4500.6,4500.0,10.4496]
[1758117332564,1.58007582,4500.2,4500.1,0.53]
[1758117332869,1.05365493,4500.2,4500.1,0.53]
[1758117333078,1.05365493,4500.2,4500.1,0.741]
[1758117333468,0.82065493,4500.2,4500.1,0.741]
[1758117333665,1.05365493,4500.2,4500.1,0.741]
[1758117335370,1.05365493,4500.2,4500.1,4.741]
[1758117335371,0.82065493,4500.2,4500.1,4.741]
[1758117335567,3.2078,4500.6,4500.5,0.8683]
[1758117335773,3.2078,4501.2,4501.0,0.546]
[1758117335969,3.2078,4501.2,4501.1,0.741]
[1758117336173,3.2078,4501.2,4501.1,0.3223]
[1758117336976,3.2078,4501.2,4501.1,4.3223]
[1758117338174,3.2078,4501.9,4501.2,0.3076]
[1758117338370,0.5482,4501.8,4501.2,0.3076]
[1758117338584,3.2078,4501.4,4501.0,0.1273]
[1758117338880,3.2078,4501.4,4501.1,0.3076]
[1758117339274,3.2078,4501.4,4501.3,0.4086]
[1758117339475,3.2078,4501.4,4501.3,0.7162]
[1758117339772,3.2078,4501.4,4501.3,4.7162]
[1758117340972,3.4408,4502.0,4501.3,4.4086]
[1758117341175,3.4408,4502.0,4501.4,0.3076]
[1758117341477,0.7478,4502.3,4502.2,0.4086]
[1758117341785,0.4326,4502.3,4502.2,0.7162]
[1758117342376,3.2078,4502.5,4502.3,0.3076]
[1758117342576,3.4074,4502.5,4502.4,0.7162]
[1758117342779,3.6014,4502.5,4502.4,0.7162]
[1758117342979,3.9166,4502.5,4502.4,0.7162]
[1758117344383,3.6014,4502.5,4502.4,0.7162]
[1758117344878,3.9166,4502.5,4502.4,0.2099]
[1758117345079,3.9166,4502.5,4502.4,0.5175]
[1758117345978,3.2078,4502.5,4502.4,0.7162]
[1758117346181,3.4074,4503.0,4502.9,0.7162]
[1758117346784,3.9166,4503.0,4502.5,0.4304]
[1758117346979,0.7088,4502.1,4502.0,3.924]
[1758117347671,0.57440443,4502.1,4502.0,4.0468]
[1758117348077,0.57440443,4502.1,4502.0,8.0468]
[1758117349182,0.3152,4502.7,4502.1,0.3076]
[1758117349383,0.7088,4502.7,4502.6,0.7162]
[1758117349582,1.28333397,4502.7,4502.6,0.7162]
[1758117350683,0.7088,4502.2,4502.1,0.2099]
[1758117350882,1.28321856,4502.2,4502.1,0.2099]
[1758117351188,0.7088,4502.2,4502.1,0.5175]
[1758117351487,0.7088,4502.2,4502.1,0.2099]
[1758117351988,0.7088,4502.2,4502.1,0.5175]
[1758117352984,0.7088,4502.2,4501.2,3.2078]
[1758117352985,0.7088,4502.2,4501.6,0.3076]
[1758117353178,0.7088,4501.7,4501.3,0.232]
[1758117353380,0.3152,4501.6,4501.5,0.2099]
[1758117353580,0.7088,4501.6,4501.5,0.7162]
[1758117353787,3.2078,4501.9,4501.5,0.839]
[1758117353985,0.1996,4501.7,4501.6,0.7162]
[1758117355885,0.1256,4502.5,4501.6,0.7162]
[1758117355886,3.5196,4502.4,4501.7,0.3126]
[1758117356086,3.9258,4502.4,4502.3,0.7051]
[1758117357379,3.9258,4502.4,4502.3,0.1977]
[1758117358389,3.2078,4502.4,4501.8,0.232]
[1758117358580,0.2033,4501.9,4501.8,0.9371]
[1758117358779,0.2033,4501.9,4501.8,0.7051]
[1758117359183,0.718,4501.9,4501.8,0.5103]
[1758117359389,0.3118,4501.8,4501.6,0.232]
[1758117359583,0.718,4501.7,4501.6,0.7423]
[1758117359785,0.718,4501.7,4501.6,0.5103]
[1758117360086,0.4062,4501.7,4501.6,0.7051]
[1758117360583,0.2033,4501.7,4501.6,0.7051]
[1758117360792,3.4111,4502.4,4502.3,0.7051]
[1758117361091,3.2078,4502.4,4502.3,0.7051]
[1758117361893,0.232,4503.1,4502.3,0.3925]
[1758117362092,0.232,4503.1,4502.5,0.118]
[1758117362294,0.1529,4502.7,4502.6,0.5103]
[1758117362589,0.3058,4502.7,4502.6,0.5103]
[1758117363488,0.1529,4502.7,4502.6,0.7051]
[1758117363689,0.5378,4503.1,4503.0,0.6283]
[1758117363890,0.97632207,4503.1,4502.5,0.118]
[1758117364091,0.4014,4503.1,4502.5,0.118]
[1758117364391,0.1529,4502.7,4502.6,0.7051]
[1758117364591,0.3058,4502.7,4502.6,0.7051]
[1758117365296,0.1529,4502.7,4502.6,0.7051]
[1758117365594,3.2078,4503.2,4503.1,0.7051]
[1758117365892,3.93652542,4503.2,4503.1,0.7051]
[1758117366193,3.93652542,4503.2,4502.2,3.2078]
[1758117366194,0.4014,4502.6,4502.3,0.3126]
[1758117366594,0.4014,4502.6,4502.2,3.2078]
[1758117366796,0.4014,4502.6,4502.5,0.4108]
[1758117367094,0.3058,4502.6,4502.5,0.6157]
[1758117367296,0.3058,4502.6,4502.5,0.828]
[1758117367695,0.3058,4502.6,4502.5,0.6157]
[1758117367996,0.0952,4502.9,4502.2,0.2929]
[1758117368195,0.0952,4502.9,4501.7,3.2078]
[1758117368196,0.4,4502.2,4501.7,0.2929]
[1758117368396,0.97616049,4502.2,4501.7,0.2929]
[1758117368592,0.88096049,4502.2,4501.4,0.232]
[1758117368793,0.3048,4502.2,4501.6,0.2929]
[1758117369296,0.3048,4502.2,4501.4,0.232]
[1758117369297,0.86364937,4502.1,4502.0,0.4108]
[1758117369592,0.3048,4502.1,4502.0,0.6157]
[1758117370191,3.3602,4502.8,4502.7,0.2049]
[1758117370393,3.91915829,4502.8,4502.7,0.7101]
[1758117370598,4.07155829,4502.8,4502.7,0.7101]
[1758117371100,3.76675829,4502.8,4502.7,0.7101]
[1758117371398,0.71135829,4502.8,4502.7,0.7101]
[1758117371999,0.232,4503.2,4502.7,0.7101]
[1758117372195,0.8640018,4503.1,4503.0,0.6157]
[1758117373197,3.2078,4503.8,4503.0,0.828]
[1758117373403,0.1524,4503.6,4503.5,0.828]
[1758117373601,0.711533,4503.6,4503.5,0.828]
[1758117373901,0.863933,4503.6,4503.5,0.828]
[1758117374596,0.559133,4503.6,4503.5,0.828]
[1758117374999,0.711533,4503.6,4503.5,0.828]
[1758117375200,0.863933,4503.6,4503.5,0.828]
[1758117376001,0.3048,4503.6,4503.5,0.828]
[1758117377301,0.4,4503.1,4502.5,0.3499]
[1758117377501,0.4,4503.1,4502.7,0.2929]
[1758117377691,0.0952,4503.0,4502.5,0.4108]
[1758117377893,0.3048,4502.6,4502.5,0.6157]
[1758117378200,0.3048,4502.6,4502.5,0.828]
[1758117379500,0.4,4502.6,4502.5,0.4108]
[1758117379698,0.3048,4502.6,4502.5,0.4108]
[1758117380001,0.3048,4502.6,4502.5,0.6157]
[1758117380400,0.4,4502.6,4502.5,0.4108]
[1758117380902,0.3048,4502.6,4502.5,0.6157]
[1758117381103,0.3048,4502.6,4502.5,0.828]
[1758117382003,0.3048,4502.6,4502.5,0.6157]
[1758117382702,0.3048,4502.6,4502.5,0.828]
[1758117383095,0.3048,4502.6,4502.5,0.4108]
[1758117383500,0.3048,4502.4,4502.3,0.3151]
[1758117383696,4.39868797,4502.4,4502.3,0.0222]
[1758117384095,4.39868797,4502.4,4502.3,0.3151]
[1758117384294,4.39868797,4502.4,4502.3,0.2929]
[1758117384798,4.30348797,4502.4,4502.3,0.2929]
[1758117384999,4.30348797,4502.4,4502.3,0.4978]
[1758117385198,4.07148797,4502.4,4502.3,0.4978]
[1758117385404,4.30348797,4502.4,4502.3,0.7101]
[1758117385796,3.2078,4502.9,4502.3,0.7101]
[1758117386001,0.55893706,4502.8,4502.7,0.4172]
[1758117386203,0.55893706,4502.8,4502.7,0.7101]
[1758117386405,41.1048,4504.0,4503.9,0.4978]
[1758117386598,0.95900846,4504.0,4503.5,0.1179]
[1758117386905,0.4,4503.7,4503.6,0.2929]
[1758117387106,3.6078,4503.7,4503.6,0.0222]
[1758117387309,8.16680846,4503.7,4503.6,0.0222]
[1758117387605,7.98884847,4503.7,4502.7,3.625]
[1758117387809,1.02480846,4503.6,4503.5,0.4108]
[1758117388195,1.09780846,4503.6,4503.5,0.2929]
[1758117388400,1.09780846,4503.6,4503.1,0.2929]
[1758117388601,0.1169,4503.2,4503.1,0.7101]
[1758117388801,0.90790846,4503.2,4503.1,0.7101]
[1758117390404,0.67590846,4503.2,4503.1,0.7101]
[1758117390700,3.2078,4503.7,4503.1,0.7101]
[1758117390701,0.232,4503.3,4503.2,0.2929]
[1758117390906,0.90795196,4503.3,4503.2,0.7101]
[1758117391107,0.79105196,4503.3,4503.2,0.7101]
[1758117391707,1.02485196,4503.3,4503.2,0.7101]
[1758117391906,1.02485196,4503.3,4503.2,0.2929]
[1758117392104,0.073,4503.2,4502.8,0.2929]
[1758117392407,0.2338,4502.9,4502.8,0.2929]
[1758117392607,0.2338,4502.9,4502.8,0.4978]
[1758117392804,0.79285196,4502.9,4502.8,0.4978]
[1758117393205,0.2338,4502.9,4502.8,0.4978]
[1758117393404,0.2338,4502.9,4502.8,0.7101]
[1758117396412,0.3068,4502.9,4502.8,0.2929]
[1758117396613,0.2338,4502.9,4502.8,0.2929]